bitfinex/quotes_BTCUSD_20220111
["timestamp","ask_amount","ask_price","bid_price","bid_amount"]
[1641931662406,2.09565364,43075.0,43074.0,0.00083997]
[1641931662603,1.99565364,43075.0,43074.0,0.00083997]
[1641931662804,1.59089682,43075.0,43066.0,0.00015]
[1641931663052,0.00121165,43070.0,43066.0,0.00015]
[1641931663244,1.2139918,43067.0,43066.0,0.00015]
[1641931663448,2.05688887,43067.0,43066.0,0.00015]
[1641931663746,0.04003549,43066.0,43065.0,0.00015]
[1641931663947,1.96548219,43066.0,43065.0,0.00015]
[1641931664147,1.96548219,43066.0,43064.0,0.00084009]
[1641931664148,2.06548219,43066.0,43064.0,0.00084009]
[1641931664347,2.06548219,43066.0,43062.0,0.42]
[1641931664348,1.54819041,43064.0,43062.0,0.42]
[1641931664549,0.88648846,43063.0,43062.0,0.42]
[1641931664947,0.94593893,43063.0,43057.0,0.00015]
[1641931665148,0.373709,43059.0,43057.0,0.00015]
[1641931665346,0.44281263,43058.0,43057.0,0.00015]
[1641931665547,0.04779722,43058.0,43057.0,0.00015]
[1641931667003,0.99779722,43058.0,43057.0,0.00015]
[1641931667208,1.47150622,43058.0,43057.0,0.00015]
[1641931667404,1.52150622,43058.0,43057.0,0.00015]
[1641931667606,1.52150622,43058.0,43056.0,0.00015]
[1641931667804,1.52500395,43057.0,43056.0,0.00015]
[1641931668005,0.373709,43056.0,43049.0,0.0003]
[1641931668208,0.00128242,43050.0,43049.0,0.0003]
[1641931668406,0.05493013,43050.0,43048.0,0.0003]
[1641931668808,0.00124942,43049.0,43048.0,0.0003]
[1641931669006,1.60546744,43049.0,43048.0,0.0003]
[1641931669207,2.02917644,43049.0,43048.0,0.0003]
[1641931669605,0.75,43048.0,43047.0,0.3153]
[1641931669815,1.170209,43048.0,43047.0,0.3153]
[1641931670651,0.420209,43048.0,43047.0,0.3103]
[1641931670851,0.470209,43048.0,43047.0,0.3103]
[1641931671152,1.42144414,43048.0,43047.0,0.3103]
[1641931671353,1.52144414,43048.0,43047.0,0.3103]
[1641931671550,1.52144414,43048.0,43045.0,0.00053928]
[1641931671551,0.07138,43047.0,43045.0,0.00053928]
[1641931671851,0.491589,43047.0,43046.0,0.2805]
[1641931672051,0.591589,43047.0,43046.0,0.2805]
[1641931672454,0.491589,43047.0,43046.0,0.2805]
[1641931672751,0.420209,43047.0,43046.0,0.2805]
[1641931672955,0.0465,43047.0,43046.0,0.2805]
[1641931673751,0.0645,43047.0,43046.0,0.2805]
[1641931674702,0.0645,43047.0,43046.0,0.7005]
[1641931675106,0.0465,43047.0,43046.0,0.7005]
[1641931675705,0.0635,43047.0,43046.0,0.7005]
[1641931676103,0.0535,43047.0,43046.0,0.7005]
[1641931677709,0.0565,43047.0,43046.0,0.7005]
[1641931678154,0.0565,43047.0,43046.0,0.28001635]
[1641931678155,1.2065,43047.0,43046.0,0.28001635]
[1641931678452,1.2065,43047.0,43037.0,0.82881]
[1641931678453,0.373709,43043.0,43037.0,0.82881]
[1641931678653,1.15,43046.0,43037.0,0.00336194]
[1641931678654,1.28039355,43038.0,43037.0,0.00336194]
[1641931678852,0.85188333,43038.0,43037.0,0.00336194]
[1641931679251,0.373709,43037.0,43029.0,0.09841194]
[1641931679452,0.0465,43036.0,43029.0,0.09841194]
[1641931680357,0.0465,43036.0,43031.0,0.242857]
[1641931680553,0.0465,43036.0,43031.0,0.67663345]
[1641931681153,0.0465,43036.0,43031.0,0.242857]
[1641931681554,0.0465,43036.0,43029.0,0.09841194]
[1641931681798,0.0655,43036.0,43029.0,0.09841194]
[1641931682199,0.0655,43036.0,43030.0,0.46441504]
[1641931683002,0.0465,43036.0,43029.0,0.09841194]
[1641931683202,0.0465,43036.0,43030.0,0.42]
[1641931683402,0.0465,43036.0,43031.0,0.00084051]
[1641931683800,0.0515,43036.0,43031.0,0.00084051]
[1641931684204,2.08193622,43032.0,43031.0,0.00084051]
[1641931684403,0.373709,43030.0,43021.0,1.0112]
[1641931684606,0.97165982,43022.0,43021.0,1.0112]
[1641931684803,0.41815982,43022.0,43021.0,0.03]
[1641931685849,0.43215982,43022.0,43021.0,0.025]
[1641931686049,0.42845783,43022.0,43021.0,0.025]
[1641931686247,0.90395683,43022.0,43021.0,0.025]
[1641931686447,1.28852953,43022.0,43021.0,0.025]
[1641931687649,1.32452953,43022.0,43021.0,0.025]
[1641931687849,3.01722953,43022.0,43021.0,0.025]
[1641931688047,3.1118892,43022.0,43021.0,0.025]
[1641931688250,3.01722953,43022.0,43021.0,0.025]
[1641931688450,0.373709,43020.0,43019.0,6.5e-07]
[1641931688751,0.373709,43020.0,43019.0,0.00015065]
[1641931688752,1.61728342,43020.0,43019.0,0.00015065]
[1641931688951,2.94818342,43020.0,43019.0,6.5e-07]
[1641931689149,2.94818342,43020.0,43011.0,0.03]
[1641931689400,0.79071815,43012.0,43011.0,0.03]
[1641931689598,1.21092715,43012.0,43011.0,0.03]
[1641931690199,1.21092715,43012.0,43011.0,0.02993]
[1641931690597,1.58656681,43012.0,43011.0,0.02993]
[1641931690805,1.21092715,43012.0,43011.0,0.02993]
[1641931691200,1.58639451,43012.0,43011.0,3e-05]
[1641931691400,3.64518683,43012.0,43011.0,3e-05]
[1641931691701,3.41219994,43012.0,43011.0,3e-05]
[1641931692698,3.38856994,43012.0,43011.0,3e-05]
[1641931693147,3.37556994,43012.0,43011.0,3e-05]
[1641931693747,3.38656994,43012.0,43011.0,3e-05]
[1641931693949,3.41267052,43012.0,43011.0,3e-05]
[1641931694148,3.41063052,43012.0,43011.0,3e-05]
[1641931694349,3.41173045,43012.0,43011.0,3e-05]
[1641931694950,3.41094045,43012.0,43011.0,3e-05]
[1641931695152,3.39994045,43012.0,43011.0,3e-05]
[1641931695753,3.41194045,43012.0,43011.0,3e-05]
[1641931696156,3.75141174,43012.0,43011.0,3e-05]
[1641931696555,3.41194045,43012.0,43011.0,3e-05]
[1641931696795,3.91194045,43012.0,43011.0,3e-05]
[1641931696995,3.89994045,43012.0,43011.0,3e-05]
[1641931697797,3.96094045,43012.0,43011.0,3e-05]
[1641931698196,3.96094045,43012.0,43009.0,0.00084077]
[1641931698197,4.06842028,43012.0,43009.0,0.00084077]
[1641931698397,2.45075837,43006.0,43005.0,0.00015]
[1641931698602,2.45075837,43006.0,43000.0,0.03015]
[1641931698603,0.3744,42992.0,42989.0,0.29070771]
[1641931698806,0.3744,42992.0,42980.0,0.00015]
[1641931698807,0.0465,42991.0,42980.0,0.00015]
[1641931699005,0.8,42985.0,42980.0,0.00015]
[1641931699200,0.35,42986.0,42978.0,0.00015]
[1641931699201,0.72096214,42981.0,42978.0,0.00015]
[1641931699397,0.373709,42979.0,42978.0,0.00015]
[1641931699600,0.420209,42979.0,42978.0,0.00015]
[1641931699798,0.420209,42979.0,42977.0,0.02515]
[1641931699799,0.373709,42978.0,42977.0,0.02515]
[1641931699998,0.0465,42978.0,42977.0,0.02515]
[1641931700201,1.5465,42978.0,42977.0,5e-05]
[1641931700401,3.803379,42978.0,42977.0,5e-05]
[1641931700651,2.622379,42978.0,42977.0,5e-05]
[1641931700853,2.81972283,42978.0,42977.0,5e-05]
[1641931701353,4.50501779,42978.0,42977.0,5e-05]
[1641931701554,0.35564406,42972.0,42959.0,0.00015]
[1641931701751,0.35564406,42972.0,42945.0,0.41024506]
[1641931701752,0.3613713,42959.0,42956.0,0.00015]
[1641931701952,0.373709,42957.0,42956.0,0.00015]
[1641931702155,0.373709,42953.0,42950.0,0.12995]
[1641931702352,0.373709,42951.0,42950.0,0.12995]
[1641931702553,1.1,42949.0,42939.0,0.00015]
[1641931702753,0.42376235,42943.0,42939.0,0.00015]
[1641931702954,0.42376235,42943.0,42938.0,0.00015]
[1641931702955,0.954409,42940.0,42938.0,0.00015]
[1641931703152,0.420209,42939.0,42932.0,0.00129603]
[1641931703352,0.420209,42939.0,42934.0,0.00015]
[1641931703353,1.523709,42935.0,42934.0,0.00015]
[1641931703551,0.373709,42931.0,42928.0,0.0952]
[1641931703751,0.373709,42931.0,42920.0,0.00015]
[1641931703752,0.373709,42927.0,42920.0,0.00015]
[1641931703955,0.373709,42927.0,42911.0,0.20037063]
[1641931703956,0.4238452,42921.0,42911.0,0.20037063]
[1641931704159,0.35,42917.0,42911.0,0.00037063]
[1641931704401,0.35,42917.0,42897.0,0.1]
[1641931704402,0.5807,42915.0,42897.0,0.1]
[1641931704598,0.5807,42915.0,42895.0,1.15963814]
[1641931704599,0.00015,42910.0,42895.0,1.14089348]
[1641931704821,0.0465,42909.0,42902.0,0.1]
[1641931704998,0.57975,42911.0,42900.0,0.00015]
[1641931704999,0.420209,42908.0,42900.0,0.00015]
[1641931705199,0.5807,42904.0,42900.0,0.00015]
[1641931705397,0.420209,42903.0,42899.0,0.00015]
[1641931705599,0.420209,42903.0,42899.0,0.31222936]
[1641931705797,0.420209,42903.0,42902.0,0.095]
[1641931705798,0.0465,42903.0,42902.0,0.095]
[1641931706200,0.42,42918.0,42906.0,0.00126963]
[1641931706400,0.45877184,42914.0,42906.0,0.00126963]
[1641931706601,0.79338674,42913.0,42900.0,0.00015]
[1641931706799,0.4296246,42902.0,42900.0,0.00015]
[1641931707299,0.373709,42901.0,42900.0,0.00015]
[1641931707498,0.373709,42901.0,42900.0,0.09515]
[1641931707700,0.4296246,42902.0,42901.0,0.30121058]
[1641931708058,0.42,42918.0,42903.0,0.0012852]
[1641931708251,0.74688674,42916.0,42903.0,0.0012852]
[1641931708451,0.005,42910.0,42900.0,0.00015]
[1641931708651,0.373709,42909.0,42901.0,0.095]
[1641931708852,0.373709,42909.0,42902.0,0.28013725]
[1641931709053,0.41483686,42907.0,42902.0,0.28013725]
[1641931709257,0.42,42918.0,42915.0,0.36059027]
[1641931709453,0.373709,42916.0,42915.0,0.36059027]
[1641931709754,0.002,42917.0,42916.0,1.15]
[1641931710056,0.00015,42940.0,42924.0,0.00120637]
[1641931710255,0.33350564,42936.0,42929.0,0.7289331]
[1641931710453,0.00015,42940.0,42929.0,0.7289331]
[1641931710654,0.00015,42940.0,42929.0,1.8526421]
[1641931710853,0.00015,42940.0,42929.0,1.9491421]
[1641931711054,0.00015,42940.0,42929.0,1.1991421]
[1641931711455,0.42669698,42939.0,42929.0,1.1991421]
[1641931711653,0.42669698,42939.0,42929.0,1.3491421]
[1641931712101,0.00015,42940.0,42929.0,1.71115143]
[1641931712303,0.00015,42940.0,42939.0,1.49106064]
[1641931712503,0.00015,42940.0,42939.0,2.44136436]
[1641931712702,0.00015,42940.0,42939.0,2.63636436]
[1641931713102,0.00015,42940.0,42939.0,2.78636436]
[1641931713301,0.00015,42940.0,42939.0,2.69256633]
[1641931713904,0.00015,42940.0,42939.0,0.09525197]
[1641931714103,0.373859,42940.0,42937.0,0.00075373]
[1641931714303,0.373859,42940.0,42932.0,0.00123641]
[1641931714506,0.00015,42940.0,42937.0,0.00075373]
[1641931714702,0.33576842,42938.0,42937.0,0.00075373]
[1641931714903,0.70947742,42938.0,42937.0,0.00075373]
[1641931715304,0.70947742,42938.0,42932.0,0.00043814]
[1641931715557,0.33576842,42938.0,42932.0,0.00043814]
[1641931715750,0.34176842,42938.0,42935.0,0.00075685]
[1641931716549,0.34176842,42938.0,42936.0,0.26753561]
[1641931717152,0.33576842,42938.0,42936.0,0.26753561]
[1641931717551,0.33076842,42938.0,42936.0,0.26753561]
[1641931717750,0.33876842,42938.0,42936.0,0.26753561]
[1641931718351,0.003,42938.0,42936.0,0.26753561]
[1641931718552,0.003,42938.0,42937.0,1.88076547]
[1641931718751,0.003,42938.0,42937.0,1.91977875]
[1641931718951,0.00015,42940.0,42938.0,0.8]
[1641931719152,0.00015,42940.0,42937.0,0.72327875]
[1641931719153,0.00015,42940.0,42939.0,1.74367749]
[1641931719400,0.00015,42940.0,42939.0,2.14718626]
[1641931719706,0.00015,42940.0,42939.0,1.80156877]
[1641931719901,0.00015,42940.0,42939.0,1.90556877]
[1641931720102,0.00015,42940.0,42939.0,2.19846877]
[1641931720300,0.00015,42950.0,42949.0,0.81951355]
[1641931720503,0.00015,42950.0,42949.0,0.35451355]
[1641931720701,0.00015,42950.0,42949.0,0.70787008]
[1641931720901,0.00015,42950.0,42942.0,0.00129181]
[1641931720902,0.37959616,42951.0,42947.0,0.45275983]
[1641931721301,0.00083976,42953.0,42947.0,0.45275983]
[1641931721601,0.00083976,42953.0,42948.0,0.34001873]
[1641931721902,0.00083976,42953.0,42947.0,0.006]
[1641931722307,0.44275923,42953.0,42947.0,0.006]
[1641931723146,0.005,42952.0,42946.0,0.34369061]
[1641931723346,0.00083976,42953.0,42946.0,0.34369061]
[1641931723550,0.005,42952.0,42947.0,0.34393248]
[1641931723748,0.005,42952.0,42946.0,0.34369061]
[1641931724047,0.00083976,42953.0,42946.0,0.34969061]
[1641931724347,0.00083976,42953.0,42948.0,0.84019815]
[1641931724548,9.76e-06,42953.0,42951.0,0.15]
[1641931724748,9.76e-06,42953.0,42952.0,0.75028984]
[1641931724951,9.76e-06,42953.0,42952.0,0.390049]
[1641931725147,9.76e-06,42953.0,42952.0,0.490049]
[1641931725348,9.76e-06,42953.0,42952.0,0.390049]
[1641931725948,9.76e-06,42953.0,42952.0,0.411049]
[1641931726147,9.76e-06,42953.0,42952.0,0.405669]
[1641931726348,9.76e-06,42953.0,42952.0,0.49815367]
[1641931726547,9.76e-06,42953.0,42952.0,0.355669]
[1641931726813,9.76e-06,42953.0,42952.0,0.60933923]
[1641931727013,9.76e-06,42953.0,42952.0,0.69726553]
[1641931727214,9.76e-06,42953.0,42952.0,0.67626553]
[1641931727415,9.76e-06,42953.0,42952.0,0.57626553]
[1641931727617,9.76e-06,42953.0,42952.0,0.234669]
[1641931727814,9.76e-06,42953.0,42952.0,0.60648945]
[1641931728214,9.76e-06,42953.0,42952.0,0.59798856]
[1641931728414,9.76e-06,42953.0,42952.0,0.255669]
[1641931728614,9.76e-06,42953.0,42952.0,0.60340373]
[1641931729017,9.76e-06,42953.0,42952.0,0.250869]
[1641931729215,9.76e-06,42953.0,42952.0,0.5891785]
[1641931729815,9.76e-06,42953.0,42952.0,0.6101785]
[1641931730949,9.76e-06,42953.0,42952.0,1.9411785]
[1641931731250,9.76e-06,42953.0,42952.0,1.9201785]
[1641931731852,9.76e-06,42953.0,42952.0,1.9401785]
[1641931733051,9.76e-06,42953.0,42952.0,2.0351785]
[1641931733249,9.76e-06,42953.0,42952.0,2.0151785]
[1641931733851,9.76e-06,42953.0,42952.0,2.0351785]
[1641931734302,9.76e-06,42953.0,42952.0,1.9401785]
[1641931735103,9.76e-06,42953.0,42952.0,1.9201785]
[1641931735906,9.76e-06,42953.0,42952.0,1.9451785]
[1641931736303,9.76e-06,42953.0,42952.0,0.7141785]
[1641931736503,9.76e-06,42953.0,42952.0,1.485869]
[1641931737406,9.76e-06,42953.0,42952.0,0.254869]
[1641931737605,9.76e-06,42953.0,42952.0,0.0679]
[1641931737808,9.76e-06,42953.0,42952.0,0.417187]
[1641931738062,9.76e-06,42953.0,42952.0,0.437187]
[1641931738850,9.76e-06,42953.0,42952.0,0.537187]
[1641931739250,9.76e-06,42953.0,42952.0,0.417187]
[1641931739850,9.76e-06,42953.0,42952.0,0.454187]
[1641931740051,0.00500976,42953.0,42952.0,1.20528567]
[1641931741051,0.00500976,42953.0,42952.0,1.16828567]
[1641931741899,0.00500976,42953.0,42952.0,1.18328567]
[1641931742901,9.76e-06,42953.0,42952.0,0.85588027]
[1641931743101,9.76e-06,42953.0,42952.0,0.432187]
[1641931743305,9.76e-06,42953.0,42952.0,0.417187]
[1641931744001,9.76e-06,42953.0,42952.0,0.435187]
[1641931744502,9.76e-06,42953.0,42952.0,0.77430687]
[1641931744702,9.76e-06,42953.0,42952.0,0.435187]
[1641931745105,9.76e-06,42953.0,42952.0,0.87556779]
[1641931745305,9.76e-06,42953.0,42952.0,2.08856779]
[1641931745559,9.76e-06,42953.0,42952.0,0.417187]
[1641931746555,9.76e-06,42953.0,42952.0,0.67553239]
[1641931747054,9.76e-06,42953.0,42952.0,0.417187]
[1641931748356,9.76e-06,42953.0,42952.0,0.76116629]
[1641931748560,0.00054512,42957.0,42952.0,0.76116629]
[1641931748756,0.00054512,42957.0,42953.0,1.231]
[1641931748955,0.00054512,42957.0,42953.0,0.0429]
[1641931749156,0.00015,42960.0,42956.0,1.15]
[1641931749412,0.001,42975.0,42956.0,1.15]
[1641931749413,0.00129998,42974.0,42958.0,1.25]
[1641931749608,0.002,42985.0,42977.0,0.3265276]
[1641931749609,1.20129879,42981.0,42977.0,0.3265276]
[1641931749807,1.20129879,42981.0,42978.0,0.0429]
[1641931749808,1.2,42981.0,42978.0,0.0429]
[1641931750213,1.2,42981.0,42979.0,1.40915994]
[1641931750406,1.2,42981.0,42979.0,0.77634694]
[1641931750607,1.20054535,42981.0,42979.0,0.8276058]
[1641931751209,0.002,42985.0,42981.0,0.65]
[1641931751409,0.002,42985.0,42983.0,0.00124823]
[1641931751606,0.002,42985.0,42984.0,0.22943]
[1641931751806,0.002,42985.0,42984.0,0.21343]
[1641931752707,0.002,42985.0,42984.0,0.57008122]
[1641931753352,0.002,42985.0,42984.0,1.80108122]
[1641931753550,0.00054101,42987.0,42984.0,1.80108122]
[1641931753751,0.00054101,42987.0,42986.0,3.51247302]
[1641931753950,0.001,42988.0,42986.0,2.45666472]
[1641931754151,0.00154102,42988.0,42987.0,1.76519124]
[1641931754349,0.00154102,42988.0,42987.0,1.80809124]
[1641931754551,0.00154102,42988.0,42987.0,1.90809124]
[1641931754752,0.00154102,42988.0,42987.0,1.544431]
[1641931755154,0.001,42988.0,42987.0,1.544431]
[1641931755553,0.001,42988.0,42987.0,0.313431]
[1641931755852,0.001,42988.0,42987.0,0.0429]
[1641931756051,0.375194,42988.0,42987.0,0.0619]
[1641931756553,0.375194,42988.0,42987.0,0.019]
[1641931757199,0.375194,42988.0,42982.0,0.05]
[1641931757399,0.001,42988.0,42982.0,0.05]
[1641931757599,0.001,42988.0,42983.0,0.374194]
[1641931757800,0.43060165,42984.0,42980.0,0.0429]
[1641931757999,0.00054102,42987.0,42982.0,0.028]
[1641931758202,0.00097755,42996.0,42983.0,0.170626]
[1641931758399,0.00097755,42996.0,42985.0,0.31588195]
[1641931759002,0.39071016,42991.0,42985.0,0.31588195]
[1641931759202,0.41663145,42984.0,42980.0,0.00015]
[1641931759805,0.38115846,42983.0,42980.0,0.00015]
[1641931760004,1.374194,42981.0,42980.0,0.024]
[1641931760206,1.76666635,42981.0,42980.0,0.024]
[1641931760405,1.76666635,42981.0,42980.0,0.02415]
[1641931760659,1.41755151,42981.0,42980.0,0.02415]
[1641931760859,0.41755151,42981.0,42980.0,0.02415]
[1641931761161,0.41635079,42981.0,42980.0,0.00015]
[1641931761563,0.41635079,42981.0,42976.0,0.31521092]
[1641931761759,0.0429,42981.0,42976.0,0.31521092]
[1641931761960,0.0739,42981.0,42977.0,0.00015]
[1641931763162,0.0429,42981.0,42971.0,0.00015]
[1641931763362,0.35752242,42975.0,42971.0,0.00015]
[1641931763761,0.35752242,42975.0,42972.0,0.34184526]
[1641931763964,0.36752242,42975.0,42971.0,0.00815]
[1641931764162,0.36752242,42975.0,42973.0,0.00015]
[1641931764399,0.36752242,42975.0,42972.0,0.00015]
[1641931764800,0.46752242,42975.0,42972.0,0.00015]
[1641931765000,0.36752242,42975.0,42972.0,0.00015]
[1641931765200,0.45752242,42975.0,42972.0,0.00015]
[1641931765401,0.81403316,42974.0,42972.0,0.00015]
[1641931765603,1.524213,42973.0,42966.0,0.0003]
[1641931765802,0.00124113,42971.0,42966.0,0.0003]
[1641931766005,2.06068386,42967.0,42966.0,0.0003]
[1641931766405,2.01153228,42966.0,42961.0,0.0033656]
[1641931766608,0.374213,42962.0,42961.0,0.0033656]
[1641931766803,0.462713,42962.0,42961.0,0.0033656]
[1641931767004,0.462713,42962.0,42961.0,0.0036656]
[1641931767205,0.462713,42962.0,42961.0,0.0003]
[1641931767403,0.8274784,42962.0,42961.0,0.0003]
[1641931767606,0.8703784,42962.0,42953.0,0.00045]
[1641931767804,0.8703784,42962.0,42951.0,0.00045]
[1641931767805,0.505613,42962.0,42951.0,0.00045]
[1641931768060,0.36681675,42952.0,42951.0,0.00045]
[1641931768348,0.36681675,42952.0,42951.0,0.2704988]
[1641931769049,0.36681675,42952.0,42951.0,0.00045]
[1641931769951,0.37881675,42952.0,42951.0,0.00045]
[1641931770152,0.37881675,42952.0,42949.0,0.00084148]
[1641931770350,0.37881675,42952.0,42950.0,0.0006]
[1641931770351,0.24378875,42952.0,42950.0,0.0006]
[1641931771152,0.23178875,42952.0,42949.0,0.00084149]
[1641931771810,0.44883782,42951.0,42949.0,0.00084149]
[1641931772105,1.93116689,42950.0,42948.0,0.0008415]
[1641931772305,2.39891862,42949.0,42948.0,0.0008415]
[1641931772506,1.15,42948.0,42942.0,0.00556649]
[1641931772705,0.70377408,42944.0,42942.0,0.00556649]
[1641931772906,1.82595095,42943.0,42942.0,6.649e-05]
[1641931773105,0.374213,42939.0,42933.0,0.0011]
[1641931773309,0.1,42934.0,42933.0,0.0011]
[1641931773508,0.74196034,42934.0,42933.0,0.0011]
[1641931773705,0.374213,42934.0,42933.0,0.0017]
[1641931774108,0.384213,42934.0,42933.0,0.0017]
[1641931774409,0.73424405,42934.0,42933.0,0.0017]
[1641931774605,0.77714405,42934.0,42933.0,0.0017]
[1641931775007,0.77714405,42934.0,42931.0,0.00075751]
[1641931775209,0.374213,42933.0,42931.0,0.00075751]
[1641931775553,1.32403067,42932.0,42931.0,0.00075751]
[1641931775750,0.77403067,42932.0,42931.0,0.00075751]
[1641931776049,0.417113,42932.0,42930.0,0.00200752]
[1641931776249,0.72799484,42931.0,42930.0,0.00200752]
[1641931776449,0.82799484,42931.0,42930.0,0.00200752]
[1641931776849,1.524213,42930.0,42928.0,0.0011]
[1641931777055,0.77827528,42929.0,42928.0,0.00185754]
[1641931777251,0.417246,42929.0,42928.0,0.00185754]
[1641931777651,1.1,42928.0,42922.0,0.0030306]
[1641931777854,1.3825673,42923.0,42922.0,0.0030306]
[1641931778053,1.3825673,42923.0,42920.0,0.00015]
[1641931778054,0.7998133,42923.0,42920.0,0.00015]
[1641931778251,0.374346,42922.0,42920.0,0.00015]
[1641931778753,0.374346,42922.0,42920.0,6.322e-05]
[1641931779151,0.3825673,42923.0,42919.0,0.08996322]
[1641931779610,0.374346,42922.0,42919.0,0.08996322]
[1641931780002,0.4215673,42923.0,42919.0,0.08996322]
[1641931781208,0.374346,42922.0,42919.0,0.08996322]
[1641931781606,0.7197602,42922.0,42919.0,0.08996322]
[1641931781805,0.374346,42920.0,42919.0,0.08996322]
[1641931782006,1.15,42919.0,42918.0,0.00084184]
[1641931782313,0.374346,42916.0,42912.0,0.00336786]
[1641931782505,1.46666092,42915.0,42912.0,0.00336786]
[1641931782707,1.46666092,42915.0,42906.0,0.0011]
[1641931782708,0.374346,42911.0,42906.0,0.0011]
[1641931782907,0.72862852,42910.0,42906.0,0.0011]
[1641931783158,0.374346,42909.0,42906.0,0.0011]
[1641931783567,0.37555269,42909.0,42906.0,0.0011]
[1641931783757,0.75718144,42909.0,42906.0,0.0011]
[1641931783957,0.78018144,42909.0,42906.0,0.0011]
[1641931784358,0.39855269,42909.0,42906.0,0.0011]
[1641931784959,0.19570169,42909.0,42906.0,0.0011]
[1641931785357,0.17270169,42909.0,42906.0,0.0011]
[1641931786160,0.20470169,42909.0,42906.0,0.0011]
[1641931786660,0.032,42909.0,42908.0,0.25426041]
[1641931786899,0.44655959,42909.0,42906.0,0.00084197]
[1641931787502,0.41455959,42909.0,42899.0,0.39840937]
[1641931787700,0.41455959,42909.0,42908.0,0.000103]
[1641931787901,0.78896959,42909.0,42908.0,0.000103]
[1641931788102,0.80096959,42909.0,42908.0,0.000103]
[1641931788302,1.14552055,42909.0,42908.0,0.000103]
[1641931788501,1.15082737,42909.0,42908.0,0.000103]
[1641931788701,0.80096959,42909.0,42908.0,0.000103]
[1641931789002,1.14583149,42909.0,42908.0,0.000103]
[1641931789203,0.78896959,42909.0,42908.0,0.000103]
[1641931790005,0.80696959,42909.0,42908.0,0.000103]
[1641931791251,0.78896959,42909.0,42908.0,0.000103]
[1641931791853,0.37441,42909.0,42908.0,0.000103]
[1641931792052,0.37441,42909.0,42908.0,0.374513]
[1641931792053,0.012,42909.0,42908.0,0.374513]
[1641931792252,0.012,42909.0,42908.0,1.12033885]
[1641931793252,0.00015,42910.0,42908.0,0.000103]
[1641931794153,0.02915,42910.0,42908.0,0.005103]
[1641931795404,0.00015,42910.0,42908.0,0.000103]
[1641931795805,0.00015,42910.0,42904.0,0.00211568]
[1641931796006,0.02415,42910.0,42904.0,0.00211568]
[1641931796206,0.02415,42910.0,42904.0,0.00127366]
[1641931796406,0.02415,42910.0,42904.0,0.00080285]
[1641931796808,0.3273345,42903.0,42898.0,0.1493447]
[1641931797009,0.02415,42910.0,42903.0,0.72128988]
[1641931797208,0.00015,42910.0,42903.0,0.72128988]
[1641931797609,0.00015,42910.0,42903.0,0.71628988]
[1641931798058,0.41353024,42908.0,42903.0,0.71728988]
[1641931798450,0.41353024,42908.0,42903.0,0.001]
[1641931799250,0.41353024,42908.0,42898.0,0.1493447]
[1641931799451,0.41353024,42908.0,42898.0,0.1993447]
[1641931799652,0.33502798,42900.0,42898.0,0.63523736]
[1641931799857,0.33502798,42900.0,42899.0,0.37441]
[1641931800152,0.33502798,42900.0,42898.0,0.60323736]
[1641931800356,0.33502798,42900.0,42899.0,0.37441]
[1641931800751,0.0006397,42907.0,42906.0,0.29794588]
[1641931800952,0.00015,42910.0,42906.0,0.29794588]
[1641931801151,0.00063962,42907.0,42906.0,0.29794588]
[1641931801351,0.00063962,42907.0,42899.0,0.05]
[1641931801552,0.00063962,42907.0,42898.0,0.1993447]
[1641931801799,0.41886012,42906.0,42899.0,0.37441]
[1641931801999,0.41886012,42906.0,42898.0,0.2063447]
[1641931802401,0.41886012,42906.0,42901.0,0.31095522]
[1641931803500,0.41886012,42906.0,42901.0,0.31179725]
[1641931804100,0.43386012,42906.0,42901.0,0.31479725]
[1641931804501,0.43386012,42906.0,42901.0,0.31395522]
[1641931804700,0.43386012,42906.0,42901.0,0.31479725]
[1641931805301,0.43386012,42906.0,42901.0,0.00084203]
[1641931805302,0.0012724,42903.0,42901.0,0.00084203]
[1641931806049,0.0122724,42903.0,42900.0,0.00084204]
[1641931806849,0.011,42903.0,42894.0,0.25843873]
[1641931807049,0.011,42903.0,42899.0,0.00084205]
[1641931807250,0.41886012,42906.0,42899.0,0.00084205]
[1641931807651,0.41886012,42906.0,42899.0,0.41240815]
[1641931808050,0.47286012,42906.0,42899.0,0.4115661]
[1641931808252,0.47286012,42906.0,42900.0,0.00084204]
[1641931809052,0.00125979,42905.0,42900.0,0.00084204]
[1641931809305,0.35019055,42905.0,42897.0,0.27589693]
[1641931809506,0.00125979,42905.0,42901.0,0.00084203]
[1641931809706,0.0006397,42907.0,42901.0,0.00084203]
[1641931809908,0.0006397,42907.0,42901.0,0.47835175]
[1641931810108,0.057,42905.0,42901.0,0.47835175]
[1641931810508,0.057,42905.0,42901.0,0.46835175]
[1641931810709,0.057,42905.0,42901.0,0.46919378]
[1641931811309,0.37017731,42907.0,42901.0,0.46919378]
[1641931811712,0.36953761,42907.0,42901.0,0.46835175]
[1641931811911,0.0006471,42906.0,42901.0,0.46835175]
[1641931812916,0.39553761,42907.0,42901.0,0.46835175]
[1641931813159,0.0006471,42906.0,42901.0,0.30429737]
[1641931814159,0.071,42906.0,42901.0,0.69890523]
[1641931814361,0.0716471,42906.0,42901.0,0.69890523]
[1641931815361,0.36953761,42907.0,42901.0,0.69890523]
[1641931815559,0.0006471,42906.0,42901.0,0.69890523]
[1641931815960,0.0006471,42906.0,42901.0,0.39460786]
[1641931816161,0.0716471,42906.0,42901.0,0.39460786]
[1641931816364,0.0716471,42906.0,42899.0,0.00084208]
[1641931816560,0.41362644,42906.0,42896.0,0.00234877]
[1641931816805,0.42995014,42900.0,42899.0,0.00084208]
[1641931817204,0.80436014,42900.0,42899.0,0.00084208]
[1641931817805,0.80436014,42900.0,42896.0,0.0011]
[1641931818003,0.00128991,42898.0,42897.0,0.00084207]
[1641931818605,0.37569991,42898.0,42897.0,0.00084207]
[1641931819007,0.37569991,42898.0,42896.0,0.0011]
[1641931819404,0.37441,42897.0,42896.0,0.0011]
[1641931820205,0.38941,42897.0,42896.0,0.0011]
[1641931821456,0.37441,42897.0,42896.0,0.0011]
[1641931822056,0.42995014,42900.0,42899.0,0.39662532]
[1641931822259,0.0019467,42905.0,42899.0,0.39662532]
[1641931822457,0.0019467,42905.0,42899.0,0.39162532]
[1641931822458,0.00129975,42905.0,42899.0,0.39162532]
[1641931822657,0.00129975,42905.0,42897.0,0.00084207]
[1641931822857,0.00194677,42905.0,42897.0,0.00084207]